Cogmind - Beta 11 X5 @@@ ROGUE MODE // 2021.06.29 @ 23:16:09 Player: Runia Result: Destroyed by D-53 Grenadier with Mini Grenade Launcher Performance ------------- Evolutions (0) 0 Regions Visited (4) 800 Robots Destroyed (14) 70 Value Destroyed (311) 311 Prototype IDs (2) 40 Alien Tech Used (0) 0 Bonus (0) 0 TOTAL SCORE: 1221 Bonus ------- None Cogmind --------- Core Integrity 0/250 Matter 290/300 Energy 265/265 System Corruption 5% Temperature Cool (0) Movement Rolling (145) Ox3 Location -9/Mines Parts ------- > --- POWER (1) -------- Reinforced Ion Engine > --- PROPULSION (2) --- Compact Wheel > --- UTILITY (2) ------ High-capacity Storage Unit > --- WEAPON (2) ------- (None) > --- INVENTORY (20) --- Ion Engine Light Treads Light Treads Light Treads Compact Wheel Coolant Injector Sensor Array Signal Interpreter Targeting Computer EM Shotgun EM Shotgun Beamcaster Light EM Pulse Cannon Assault Rifle Heavy Assault Rifle Autogun Great Axe Peak State ------------ > --- POWER ------------ Reinforced Ion Engine > --- PROPULSION ------- Light Treads Wheel > --- UTILITY ---------- High-capacity Storage Unit Targeting Computer > --- WEAPON ----------- Heavy Assault Rifle Heavy Assault Rifle > --- INVENTORY -------- Ion Engine Light Treads Light Treads Light Treads Light Treads Compact Wheel Compact Wheel Coolant Injector Sensor Array Signal Interpreter Targeting Computer Light Armor Plating EM Shotgun EM Shotgun Medium Laser Light EM Pulse Cannon Assault Rifle Heavy Assault Rifle Autogun Great Axe [Rating: 13] Favorites ----------- Power Light Ion Engine Engine Light Ion Engine Propulsion Light Treads Treads Light Treads Leg Aluminum Leg Wheel Wheel Utility High-capacity Storage Unit Storage High-capacity Storage Unit Processor Targeting Computer Protection Light Armor Plating Weapon Heavy Assault Rifle Energy Gun EM Shotgun Ballistic Gun Heavy Assault Rifle Impact Weapon Hammer Build | -11 -10 -10 -10 -9 ------- Run | Scr Mat Min Exi Min Slots Evolved . | . . . . . Power . | . . . . . Propulsion . | . . . . . Utility . | . . . . . Weapon . | . . . . . Parts Attached 21 | . 11 4 . 6 Power 1 | . . . . 1 Engine 1 | . . . . 1 Core . | . . . . . Reactor . | . . . . . Propulsion 4 | . 2 . . 2 Treads 2 | . 1 . . 1 Leg . | . . . . . Wheel 2 | . 1 . . 1 Hover . | . . . . . Flight . | . . . . . Utility 5 | . 3 . . 2 Device . | . . . . . Storage 2 | . 2 . . . Processor 2 | . 1 . . 1 Hackware . | . . . . . Protection 1 | . . . . 1 Artifact . | . . . . . Weapon 11 | . 6 4 . 1 Energy Gun 3 | . 1 2 . . Energy Cannon . | . . . . . Ballistic Gun 7 | . 4 2 . 1 Ballistic Cannon . | . . . . . Launcher . | . . . . . Special Weapon . | . . . . . Impact Weapon 1 | . 1 . . . Slashing Weapon . | . . . . . Piercing Weapon . | . . . . . Special Melee Weapon . | . . . . . Unidentified Prototypes . | . . . . . Parts Lost 7 | . . . . 7 Power . | . . . . . Propulsion 3 | . . . . 3 Utility 2 | . . . . 2 Weapon 2 | . . . . 2 Highest Loss Streak 3 | . . . . 3 Average Slot Usage (%) 94 | . 88 100 100 97 Engine 14 | . 14 14 14 14 Treads 14 | . 14 14 14 14 Wheel 14 | . 14 14 14 14 Storage 14 | . 14 14 14 14 Processor 9 | . 3 14 14 14 Ballistic Gun 26 | . 25 26 28 25 Naked Turns . | . . . . . Heaviest Build 56 | 10 54 49 49 56 Greatest Support 20 | 20 10 10 10 16 Greatest Overweight (x) 5 | . 5 4 4 5 Average Overweight (x) 3 | . 2 4 4 4 Largest Inventory Capacity 20 | 8 20 20 20 20 Average Capacity 18 | 8 17 20 20 20 Most Carried 20 | 6 18 18 18 20 Average Carried 15 | 6 10 18 18 19 Final Capacity 20 | 8 20 20 20 20 Final Carried 18 | 6 18 18 18 17 Class Distribution -------------------- 100% | Mutant Dominant Class ---------------- Mutant | -10/Materials Mutant | -10/Mines Mutant | -10/Exiles Mutant | -9/Mines Resources | -11 -10 -10 -10 -9 ----------- Run | Scr Mat Min Exi Min Matter Collected 520 | 200 134 53 . 133 Remotely . | . . . . . Salvage Created 401 | . 171 53 . 177 Parts 29 | . 17 4 . 8 Haulers Intercepted . | . . . . . Recyclers Shooed . | . . . . . Parts Field Recycled . | . . . . . Retrieved Matter . | . . . . . Parts Self-Destructed . | . . . . . Prevented . | . . . . . Kills | -11 -10 -10 -10 -9 ------- Run | Scr Mat Min Exi Min Combat Hostiles Destroyed 12 | . 5 3 . 4 Guns 12 | . 5 3 . 4 Classes Destroyed 5 | . 4 . . 1 Operator 1 | . 1 . . . Watcher 1 | . 1 . . . Swarmer 6 | . 3 3 . . Grunt 5 | . 2 . . 3 Brawler 1 | . . . . 1 Best Kill Streak 3 | . 3 3 . 2 Combat Bots Only 3 | . 3 3 . 2 Max Kills in Single Turn 3 | . 1 3 . 1 Gunslinging 1 | . . 1 . . Exploded . | . . . . . Melee . | . . . . . Uniques/NPCs Destroyed . | . . . . . Combat | -11 -10 -10 -10 -9 -------- Run | Scr Mat Min Exi Min Damage Taken 1088 | . 170 20 . 898 Core 265 | . 63 . . 202 Absorbed by Shields . | . . . . . Core Remaining (%) 100 | 100 . . . . Volleys Fired 31 | . 18 1 . 12 Largest 2 | . 2 2 . 2 Hottest 90 | . 68 90 . 46 Shots Fired 51 | . 26 2 . 23 Gun 51 | . 26 2 . 23 Cannon . | . . . . . Launcher . | . . . . . Special . | . . . . . Kinetic 39 | . 16 . . 23 Thermal . | . . . . . Explosive . | . . . . . Electromagnetic 12 | . 10 2 . . Robot Hit Streak 11 | . 8 1 . 11 Robot Miss Streak 7 | . 7 1 . 2 Penetration Max . | . . . . . Secondary Targets 2 | . . 1 . 1 Max Gunslinging Chain 1 | . . 1 . 1 Shots Hit Robots 36 | . 17 2 . 17 Core Hits 20 | . 11 3 . 6 Critical Kills 1 | . . . . 1 Critical Parts Destroyed . | . . . . . Critical Strikes 1 | . . . . 1 Destroy 1 | . . . . 1 Melee Attacks 3 | . 3 . . . Impact 3 | . 3 . . . Slashing . | . . . . . Piercing . | . . . . . Sneak Attacks . | . . . . . Combat Hostiles . | . . . . . Follow-up Attacks . | . . . . . Damage Inflicted 482 | . 209 26 . 247 Guns 482 | . 209 26 . 247 Cannons . | . . . . . Explosions . | . . . . . Melee . | . . . . . Ramming . | . . . . . Kinetic 406 | . 159 . . 247 Thermal . | . . . . . Explosive . | . . . . . Electromagnetic 76 | . 50 26 . . Impact . | . . . . . Slashing . | . . . . . Piercing . | . . . . . Highest Corruption 5 | . . . . 5 Average Corruption 5 | . . . . 5 Corruption Purged . | . . . . . Effects 12 | . . . . 12 Message Errors 1 | . . . . 1 Matter Fused 5 | . . . . 5 Heat Flow Errors 2 | . . . . 2 Energy Discharges 2 | . . . . 2 Parts Rejected 1 | . . . . 1 Data Loss (minor) 1 | . . . . 1 Overload Shots . | . . . . . Overflow Damage . | . . . . . Projectiles . | . . . . . Explosions . | . . . . . Melee . | . . . . . Knockbacks . | . . . . . Impact . | . . . . . Kinetic . | . . . . . Secondary . | . . . . . Self-Inflicted Damage . | . . . . . Shots . | . . . . . Rammed . | . . . . . Targets Rammed . | . . . . . Kicked . | . . . . . Crushed . | . . . . . Highest Temperature 280 | . 42 30 . 280 Average Temperature 56 | . 18 17 . 87 Received Heat Transfer 204 | . 45 . . 159 Siege Activations . | . . . . . Robots Corrupted . | . . . . . Combat Hostiles . | . . . . . Parts Fried . | . . . . . Impact Corruptions . | . . . . . Robots Melted . | . . . . . Combat Hostiles . | . . . . . Parts Melted . | . . . . . Heat Transferred . | . . . . . Parts Sabotaged . | . . . . . Parts Stolen . | . . . . . Parts Stripped . | . . . . . Power Chain Reactions . | . . . . . Missiles Intercepted . | . . . . . Alert | -11 -10 -10 -10 -9 ------- Run | Scr Mat Min Exi Min Peak Influence 92 | . 75 92 . 90 Initial 22 | . . 22 . . Average 32 | . 14 90 . 37 Maximum Alert Level . | . . . . . Low Security (%) 100 | 100 100 100 . 100 Level 1 . | . . . . . Level 2 . | . . . . . Level 3 . | . . . . . Level 4 . | . . . . . Level 5 . | . . . . . High Security . | . . . . . Max Security . | . . . . . Squads Dispatched 1 | . 1 . . . Investigation . | . . . . . Extermination . | . . . . . Reinforcement 1 | . 1 . . . Assault . | . . . . . Garrison . | . . . . . Intercept . | . . . . . Construction Impeded . | . . . . . Haulers Reinforced . | . . . . . Cargo Convoy Interrupts . | . . . . . Stealth | -11 -10 -10 -10 -9 --------- Run | Scr Mat Min Exi Min Distress Signals . | . . . . . Communications Jammed . | . . . . . Distress Signals . | . . . . . Times Spotted 20 | . 8 3 . 9 Peak Tracking Total 4 | . 3 3 . 4 Tactical Retreats . | . . . . . Traps | -11 -10 -10 -10 -9 ------- Run | Scr Mat Min Exi Min Traps Triggered . | . . . . . Indirectly . | . . . . . Trap Hack Attempts . | . . . . . Triggered . | . . . . . Disarmed . | . . . . . Reprogrammed . | . . . . . Reused . | . . . . . Traps Extracted . | . . . . . Installed . | . . . . . Triggered . | . . . . . Machines | -11 -10 -10 -10 -9 ---------- Run | Scr Mat Min Exi Min Machines Disabled . | . . . . . Max in Single Turn . | . . . . . Machines Sabotaged . | . . . . . Garrisons Compromised . | . . . . . Overloaded Fab Kills . | . . . . . Fab Network Shutdowns . | . . . . . Hacking | -11 -10 -10 -10 -9 --------- Run | Scr Mat Min Exi Min Machines Accessed 7 | . 5 . 1 1 Terminals 5 | . 5 . . . Fabricators . | . . . . . Repair Stations . | . . . . . Recycling Units . | . . . . . Scanalyzers . | . . . . . Garrison Access . | . . . . . Total Hacks 16 | . 14 . 1 1 Successful 10 | . 8 . 1 1 Failed 6 | . 6 . . . Catastrophic 3 | . 3 . . . Database Lockouts . | . . . . . Manual 9 | . 9 . . . Terminals 14 | . 14 . . . Fabricators . | . . . . . Repair Stations . | . . . . . Recycling Units . | . . . . . Scanalyzers . | . . . . . Garrison Access . | . . . . . Terminal Hacks 6 | . 4 . 1 1 Record 1 | . . . 1 . Part Schematic 1 | . 1 . . . Prototype ID Bank 1 | . 1 . . . Open Door 1 | . . . . 1 Terminal Index 1 | . 1 . . . Unreport Threat 1 | . 1 . . . Fabricator Hacks . | . . . . . Repair Station Hacks . | . . . . . Recycling Unit Hacks . | . . . . . Scanalyzer . | . . . . . Garrison Access Hacks . | . . . . . Unauthorized Hacks 4 | . 4 . . . Terminals 4 | . 4 . . . Botnet 4 | . 4 . . . Fabricators . | . . . . . Repair Stations . | . . . . . Recycling Units . | . . . . . Scanalyzers . | . . . . . Garrison Access . | . . . . . Data Cores Recovered . | . . . . . Used . | . . . . . Hacking Detections 5 | . 5 . . . Full Trace Events . | . . . . . Feedback Events . | . . . . . Feedback Blocked . | . . . . . Robot Schematics Acquired . | . . . . . Robots Built . | . . . . . Matter . | . . . . . Time . | . . . . . Total Robot Build Rating . | . . . . . Part Schematics Acquired 1 | . 1 . . . Parts Built . | . . . . . Matter . | . . . . . Time . | . . . . . Total Part Build Rating . | . . . . . Parts Repaired . | . . . . . Time . | . . . . . Parts Recycled . | . . . . . Recycled Matter . | . . . . . Retrieved Matter . | . . . . . Retrieved Components . | . . . . . Parts Scanalyzed . | . . . . . Part Schematics Acquired . | . . . . . Parts Damaged . | . . . . . Bothacking | -11 -10 -10 -10 -9 ------------ Run | Scr Mat Min Exi Min Used RIF Installer . | . . . . . Robots Hacked . | . . . . . Non-combat . | . . . . . Combat . | . . . . . Robot Hacks Applied . | . . . . . Relay Couplers Released . | . . . . . Robots Rewired . | . . . . . Allies Hacked . | . . . . . Hacks Repelled . | . . . . . Allies | -11 -10 -10 -10 -9 -------- Run | Scr Mat Min Exi Min Total Allies . | . . . . . Largest Group . | . . . . . Highest-Rated Group . | . . . . . Highest-Rated Ally . | . . . . . Total Orders . | . . . . . Ally Attacks . | . . . . . Total Damage . | . . . . . Kills . | . . . . . Allies Corrupted . | . . . . . Allies Melted . | . . . . . Intel | -11 -10 -10 -10 -9 ------- Run | Scr Mat Min Exi Min Robot Analysis Total . | . . . . . Derelict Logs Recovered 2 | . . 1 . 1 Drone Launches . | . . . . . Drone Recoveries . | . . . . . Exploration | -11 -10 -10 -10 -9 ------------- Run | Scr Mat Min Exi Min Turns Passed 1415 | 32 519 133 180 551 Spaces Moved 922 | 27 349 88 129 329 Core . | . . . . . Treads . | . . . . . Legs 27 | 27 . . . . Wheels 895 | . 349 88 129 329 Hover . | . . . . . Flight . | . . . . . Fastest Speed 80 | 120 80 140 140 140 Average Speed 135 | 120 122 140 140 147 Slowest Speed 155 | 120 155 140 140 155 Overloaded Moves . | . . . . . Propulsion Burnouts . | . . . . . Robots Hopped . | . . . . . Cave-ins Triggered . | . . . . . Exploration Rate (%) 43 | 3 81 21 49 62 Regions Visited 4 Branch Regions 3 Pre-discovered Areas 1 | . . . 1 . Known Exits Taken . | . . . . . Unknown Exits Taken 4 | 1 1 1 1 . Scrap Searched 2 | . . . . 2 Spaces Dug 1 | . 1 . . . Terrain Destroyed 1 | . 1 . . . Melee 1 | . 1 . . . Projectile . | . . . . . AOE . | . . . . . Terrain Rammed . | . . . . . Walls Destroyed . | . . . . . Machines Disabled . | . . . . . Actions | -11 -10 -10 -10 -9 --------- Run | Scr Mat Min Exi Min Total 1033 | 26 411 94 128 374 Wait 17 | . 5 2 . 10 Move 918 | 26 348 87 128 329 Hop . | . . . . . Pick Up 28 | . 18 . . 10 Fast Attach 2 | . 2 . . . Attach 9 | . 5 . . 4 Detach 1 | . 1 . . . Swap 10 | . 4 4 . 2 Drop 14 | . 7 . . 7 Fire 31 | . 18 1 . 12 Melee 3 | . 3 . . . Ram . | . . . . . Kick . | . . . . . Crush . | . . . . . Escape Stasis . | . . . . . Rewire . | . . . . . Trap . | . . . . . Miscellaneous . | . . . . . Route ------- -11/Scrapyard -10/Materials (discovered 3 exits: [*Mat] / [*Min x2]) -10/Mines (discovered 2 exits: [*Mat] / *Exi) -10/Exiles -9/Mines (discovered 1 exit: [*Mat]) History --------- Turn | Location | Event 1 | -11/Scrapyard | Discovered new exit (range 3) 33 | -11/Scrapyard | Entered Materials 178 | -10/Materials | Discovered new exit (range 9) 317 | -10/Materials | Build established: Mutant 404 | -10/Materials | Discovered new exit (range 16) 543 | -10/Materials | Discovered new exit (range 6) 552 | -10/Materials | Entered Mines 635 | -10/Mines | Discovered new exit (range 6) 671 | -10/Mines | Learned 2 Materials zone layouts 680 | -10/Mines | Deemed a non-threat by the Exiles lab entrance 680 | -10/Mines | Discovered new exit (range 5) 685 | -10/Mines | Entered Exiles 723 | -10/Exiles | Met 8R-AWN 743 | -10/Exiles | Met EX-HEX 797 | -10/Exiles | Met EX-DEC 809 | -10/Exiles | Learned location of Zion (-6) 849 | -10/Exiles | Discovered new exit (range 12) 865 | -10/Exiles | Entered Mines 954 | -9/Mines | Assembled infested the area 959 | -9/Mines | Assisted by a Guerilla fighting off Assembled 1137 | -9/Mines | Learned Materials emergency access door positions 1244 | -9/Mines | Met a Derelict who couldn't figure out how to use a Trap Extractor 1386 | -9/Mines | Core integrity fell below 50% 1402 | -9/Mines | Discovered new exit (range 15) 1410 | -9/Mines | Lost 3 parts (1n2w) 1411 | -9/Mines | Core integrity fell below 20% 1416 | -9/Mines | Destroyed by D-53 Grenadier with Mini Grenade Launcher Last Messages --------------- Dropped Med. Laser. Acquired Beamcaster. K-01 Serf collects debris. Hvy. Assault Rifle destroyed. K-01 Serf collects debris. System corrupted: Heat flow error (+296). The unstable cave ceiling collapses. Lgt. Treads destroyed. The unstable cave ceiling collapses. Hvy. Assault Rifle destroyed. The unstable cave ceiling collapses. Critical hit (Burn: +37). 5: 3>%TGXUZGL,CZV4P1CJ:QSJRFQH4HTHJMK EXIT=FOUND The unstable cave ceiling collapses. Discarded Targeting Computer. Wheel destroyed. The unstable cave ceiling collapses. Lgt. Treads destroyed. Lgt. Armor Plating destroyed. Map ----- +----------------------------------------------------+ | | | | | | | | | | | | | | | | | | | | | | | ?????????????????????????????????????????????????? | | ?????????????????????????????????????????????????? | | ?????????????????????????????????????????????????? | | ?????????????????????????????????????????????????? | | ?????????????????????????????????????????????????? | | ######??????????####?????????????????????????????? | | # ############ ##????????????????????????????? | | g #######??????????????????????? | | ##########dg ##?????????????????????? | | # #????????## ######?????????????????? | | #?????????# ##?????? ?????????? | | ### ### ?????????? | | "" = d #?????????? | | """ % #?????????? | | #### """ #### @ < #?????????? | | ???## #??????????? | | ######## #??##???# #######??????????? | | ###???????#???????### ##????????????????? | | [ #?????????????????### ##?????????????????? | | #%#???????????????????## #??????????????????? | | #!#????????????????????# k ?????????????????? | | # #????????????????????## ### ????????????????? | | # #####?????????????????## ##???#???????????????? | | # ## ##??????????????????###????????????????????? | | #?????????????????????????????????????????? | | #?????????????????????????????????????????? | | ## #?????????????????????????????????????????? | | ### #?????????????????????????????????????????? | | ??## ##?????????????????????????????????????????? | | ??# ##??????????????????????????????????????????? | | ??# #???????????????????????????????????????????? | | ??# #???????????????????????????????????????????? | | ### #???????????????????????????????????????????? | | #???????????????????????????????????????????? | | ######???????????????????????????????????????????? | | ?????????????????????????????????????????????????? | | ?????????????????????????????????????????????????? | | ?????????????????????????????????????????????????? | | ?????????????????????????????????????????????????? | +----------------------------------------------------+ Best States ------------- Heat Dissipation 25 Energy Generation 12 Energy Capacity 265 Matter Stores 300 Matter Capacity 300 Sight Range 16 Terrain Scan Density 10 Evasion (%) 45 Targeting Accuracy 5 Item Schematics ----------------- Lrg. Storage Unit | -10/Materials | Hacked Robot Schematics ------------------ None Fabricated ------------ Nothing Alien Tech Used ----------------- None Achievements -------------- None Challenges ------------ None Game ------ Seed DamperIntegrityLance Manual? 0 Play Time 00:13:52 Cumulative 213.4 hours Start 2021.06.27 @ 21:23:40 End 2021.06.29 @ 23:16:09 Sessions 6 Manual Loads 0 Difficulty Rogue Special Mode None Game No. 264 Rogue 264 Adventurer 0 Explorer 0 Win Type - Total 3 Types 3/0/0/0/0/0/0/0/0 Lore% 60 Gallery% 78 Achievement% 58 Wizard Run 0 Options --------- ASCII 0 Keyboard 0 Movement Mouse Keybinds 1 Fullscreen 2 Font 24/Smallcaps Map View 76x50 Tactical HUD 1 Map Filters NONE Filters NONE Steam 1 RUN: fa57e56f-a664-4cb0-af34-e77125a99f0b